Cogmind - Beta 15 @@@ ROGUE MODE // 2025.10.18 @ 21:41:20 Player: Great Strength True Martial Result: Destroyed by S-10 Pest with Light Assault Rifle Performance ------------- Evolutions (2) 1000 Regions Visited (5) 1000 Robots Destroyed (32) 160 Value Destroyed (671) 671 Prototype IDs (25) 500 Alien Tech Used (0) 0 Bonus (300) 300 TOTAL SCORE: 3631 Bonus ------- Aligned with FarCom 300 Cogmind --------- Core Integrity 0/550 Matter 300/300 Energy 100/100 System Corruption 0% Temperature Cool (0) Movement Core (350) Ox6 Location -8/Materials Parts ------- > --- POWER (1) -------- (None) > --- PROPULSION (3) --- (None) > --- UTILITY (4) ------ Large Storage Unit > --- WEAPON (3) ------- (None) > --- INVENTORY (15) --- Nuclear Core Light Nuclear Core Light Treads Improved Heat Sink Huge Storage Unit Medium Matter Pod (100) Large Matter Pod (150) Particle Charger Improved Propulsion Shielding Light EM Pulse Cannon Light Assault Rifle Grenade Launcher Rocket Launcher Improved Datajack Axe Peak State ------------ > --- POWER ------------ Ion Engine > --- PROPULSION ------- Light Treads Light Treads Light Treads > --- UTILITY ---------- Large Storage Unit Signal Interpreter 0b10 Alert Chip Hardened Light Armor Plating > --- WEAPON ----------- Particle Gun Improved Medium Laser Heavy Particle Gun > --- INVENTORY -------- Nuclear Core Light Nuclear Core Light Treads Improved Heat Sink Huge Storage Unit Medium Matter Pod Large Matter Pod Particle Charger Improved Propulsion Shielding Light EM Pulse Cannon Light Assault Rifle Grenade Launcher Rocket Launcher Improved Datajack Axe [Rating: 26] Favorites ----------- Power Ion Engine Engine Ion Engine Propulsion Light Treads Treads Light Treads Leg Aluminum Leg Utility Signal Interpreter Device Improved Heat Sink Storage Large Storage Unit Processor Signal Interpreter Protection Hardened Light Armor Plating Weapon Light Assault Rifle Energy Gun Medium Laser Ballistic Gun Light Assault Rifle Launcher Grenade Launcher Special Weapon Mining Laser Build | -11 -10 -10 -10 -9 -8 ------- Run | Yrd Mat Min Exi Min Mat Slots Evolved 4 | . . . . . 4 Power . | . . . . . . Propulsion 1 | . . . . . 1 Utility 2 | . . . . . 2 Weapon 1 | . . . . . 1 Parts Attached 28 | 7 9 1 1 . 10 Power 2 | 1 . 1 . . . Engine 2 | 1 . 1 . . . Core . | . . . . . . Reactor . | . . . . . . Propulsion 7 | 2 3 . . . 2 Treads 4 | . 2 . . . 2 Leg 3 | 2 1 . . . . Wheel . | . . . . . . Hover . | . . . . . . Flight . | . . . . . . Utility 8 | 1 3 . 1 . 3 Device 1 | . . . . . 1 Storage 4 | 1 2 . 1 . . Processor 2 | . 1 . . . 1 Hackware . | . . . . . . Protection 1 | . . . . . 1 Artifact . | . . . . . . Weapon 11 | 3 3 . . . 5 Energy Gun 6 | 2 1 . . . 3 Energy Cannon . | . . . . . . Ballistic Gun 3 | 1 1 . . . 1 Ballistic Cannon . | . . . . . . Launcher 1 | . . . . . 1 Special Weapon 1 | . 1 . . . . Impact Weapon . | . . . . . . Slashing Weapon . | . . . . . . Piercing Weapon . | . . . . . . Special Melee Weapon . | . . . . . . Unidentified Prototypes 2 | . . . . . 2 Parts Lost 13 | . 1 2 . . 10 Power 2 | . . 1 . . 1 Propulsion 3 | . . . . . 3 Utility 2 | . . . . . 2 Weapon 6 | . 1 1 . . 4 Highest Loss Streak 8 | . 1 1 . . 8 To Critical Strikes . | . . . . . . Average Backups 10 | 2 7 9 9 14 13 Power . | . 1 1 . . . Propulsion 3 | 1 3 4 4 4 2 Utility 4 | . 2 3 4 8 5 Weapon 1 | . 1 1 1 1 2 Tool/Special . | . . . . . . Unused Backups 17 | . 1 . . . 16 Power 2 | . . . . . 2 Propulsion 1 | . . . . . 1 Utility 7 | . . . . . 7 Weapon 5 | . 1 . . . 4 Tool/Special 2 | . . . . . 2 Average Slot Usage (%) 95 | . 93 87 100 100 89 Engine 12 | . 14 8 14 14 8 Treads 22 | . 8 28 28 28 25 Leg 4 | . 19 . . . . Storage 12 | . 14 14 14 14 9 Processor 12 | . 7 14 14 14 13 Protection 1 | . . . . . 5 Energy Gun 13 | . 13 14 14 14 12 Ballistic Gun 10 | . 6 5 14 14 10 Special Weapon 2 | . 8 2 . . . Peak Build Rating 26 | 6 8 8 9 9 26 Average Rating 10 | 4 7 7 8 9 17 On Entrance 6 | . 6 8 8 9 9 Naked Turns . | . . . . . . Heaviest Build 88 | 13 88 88 88 28 39 Greatest Support 60 | 20 40 40 40 40 60 Greatest Overweight (x) 2 | 2 2 2 2 . . Average Overweight (x) . | . . 2 . . . Largest Inventory Capacity 25 | 8 25 25 25 15 15 Average Capacity 17 | 6 13 25 20 15 15 Most Carried 15 | 4 10 10 14 15 15 Average Carried 10 | 2 7 9 9 14 13 Final Capacity 25 | 8 25 25 15 15 15 Final Carried 15 | 4 10 8 14 15 15 Class Distribution -------------------- 77% | Mutant 22% | Skirmisher Dominant Class ---------------- Mutant | -10/Materials Mutant | -10/Mines Mutant | -10/Exiles Mutant | -9/Mines Skirmisher | -8/Materials Resources | -11 -10 -10 -10 -9 -8 ----------- Run | Yrd Mat Min Exi Min Mat Matter Collected 790 | 178 248 36 60 20 248 Remotely . | . . . . . . Salvage Created 859 | . 283 87 . . 489 Parts 52 | . 15 9 . . 28 Haulers Intercepted 2 | . . . . . 2 Recyclers Shooed 2 | . 1 . . . 1 Parts Field Recycled . | . . . . . . Retrieved Matter . | . . . . . . Parts Self-Destructed . | . . . . . . Prevented . | . . . . . . Kills | -11 -10 -10 -10 -9 -8 ------- Run | Yrd Mat Min Exi Min Mat Combat Hostiles Destroyed 25 | . 8 6 . . 11 Guns 21 | . 7 6 . . 8 Cannons 1 | . 1 . . . . AOE 3 | . . . . . 3 Classes Destroyed 9 | . 3 . . . 6 Worker 2 | . . . . . 2 Builder 1 | . . . . . 1 Hauler 2 | . . . . . 2 Mechanic 1 | . . . . . 1 Watcher 1 | . 1 . . . . Swarmer 14 | . 3 6 . . 5 Grunt 9 | . 5 . . . 4 Sentry 1 | . . . . . 1 Hunter 1 | . . . . . 1 Best Kill Streak 9 | . 3 3 . . 9 Combat Bots Only 5 | . 3 3 . . 5 Max Kills in Single Turn 2 | . 1 1 . . 2 Gunslinging . | . . . . . . Exploded 2 | . . . . . 2 Melee . | . . . . . . Uniques/NPCs Destroyed . | . . . . . . Combat | -11 -10 -10 -10 -9 -8 -------- Run | Yrd Mat Min Exi Min Mat Hostile Shots Fired 260 | . 36 59 . . 165 Missed 58 | . 7 12 . . 39 Hits 202 | . 29 47 . . 126 Melee 19 | . . . . . 19 Projectile 183 | . 29 47 . . 107 Critical Strikes 5 | . . 1 . . 4 Damage Taken 2247 | . 320 380 . . 1547 Core 716 | . 88 74 . . 554 Absorbed by Shields . | . . . . . . Core Remaining (%) 67 | 100 . . . 35 . Volleys Fired 96 | . 35 30 . . 31 Largest 3 | . 2 2 . . 3 Hottest 176 | . 150 150 . . 176 Shots Fired 188 | . 68 32 . . 88 Gun 180 | . 65 31 . . 84 Cannon . | . . . . . . Launcher 4 | . . . . . 4 Special 4 | . 3 1 . . . Kinetic 65 | . 31 1 . . 33 Thermal 119 | . 37 31 . . 51 Explosive 4 | . . . . . 4 Electromagnetic . | . . . . . . Robot Hit Streak 17 | . 13 3 . . 17 Robot Miss Streak 7 | . 3 5 . . 7 Penetration Max . | . . . . . . Secondary Targets 1 | . . . . . 1 Max Gunslinging Chain 1 | . . . . . 1 Shots Hit Robots 104 | . 43 15 . . 46 Core Hits 55 | . 17 6 . . 32 Critical Kills . | . . . . . . Critical Parts Destroyed . | . . . . . . Critical Strikes 9 | . 5 1 . . 3 Burn 9 | . 5 1 . . 3 Melee Attacks . | . . . . . . Impact . | . . . . . . Slashing . | . . . . . . Piercing . | . . . . . . Sneak Attacks . | . . . . . . Combat Hostiles . | . . . . . . Follow-up Attacks . | . . . . . . Damage Inflicted 1624 | . 489 200 . . 935 Guns 1264 | . 457 200 . . 607 Cannons . | . . . . . . Explosions 328 | . . . . . 328 Melee . | . . . . . . Ramming 8 | . 8 . . . . Kinetic 312 | . 186 10 . . 116 Thermal 976 | . 295 190 . . 491 Explosive 328 | . . . . . 328 Electromagnetic . | . . . . . . Impact . | . . . . . . Slashing . | . . . . . . Piercing . | . . . . . . Highest Corruption . | . . . . . . Average Corruption . | . . . . . . Corruption Purged . | . . . . . . Corruption Blocked . | . . . . . . Overload Shots . | . . . . . . Overflow Damage . | . . . . . . Projectiles . | . . . . . . Explosions . | . . . . . . Melee . | . . . . . . Knockbacks . | . . . . . . Impact . | . . . . . . Kinetic . | . . . . . . Secondary . | . . . . . . Self-Inflicted Damage . | . . . . . . Shots . | . . . . . . Rammed . | . . . . . . Targets Rammed 1 | . 1 . . . . Kicked 1 | . 1 . . . . Crushed . | . . . . . . Highest Temperature 651 | . 173 120 . . 651 Average Temperature 104 | . 53 57 . . 174 Received Heat Transfer 195 | . 141 . . . 54 Effects 12 | . . . . . 12 Shutdowns 3 | . . . . . 3 Energy Bleed 4 | . . . . . 4 Matter Decay 1 | . . . . . 1 Short Circuit 3 | . . . . . 3 Damage (minor) 1 | . . . . . 1 Siege Activations . | . . . . . . Martial Activations . | . . . . . . Shielding Activations . | . . . . . . Robots Disrupted . | . . . . . . Combat Hostiles . | . . . . . . Robots Corrupted . | . . . . . . Combat Hostiles . | . . . . . . Parts Fried . | . . . . . . Impact Corruptions . | . . . . . . Robots Melted . | . . . . . . Combat Hostiles . | . . . . . . Parts Melted 3 | . 3 . . . . Heat Transferred 3121 | . 1197 629 . . 1295 Parts Sabotaged . | . . . . . . Parts Stolen . | . . . . . . Parts Stripped . | . . . . . . Power Chain Reactions . | . . . . . . Alert | -11 -10 -10 -10 -9 -8 ------- Run | Yrd Mat Min Exi Min Mat Maximum Alert Level . | . . . . . . Low Security (%) 100 | 100 100 100 . 100 100 Level 1 . | . . . . . . Level 2 . | . . . . . . Level 3 . | . . . . . . Level 4 . | . . . . . . Level 5 . | . . . . . . High Security . | . . . . . . Max Security . | . . . . . . Peak Influence 116 | . 80 61 . . 116 Initial . | . . . . . . Average 21 | . 19 32 . . 30 Influence Increases 635 | . 212 141 . . 282 Destroy 0b10 Robot/C 468 | . 160 120 . . 188 Destroy 0b10 Robot/NC 29 | . 5 . . . 24 Destroy Leader 90 | . 32 20 . . 38 Disable Machine 30 | . 15 . . . 15 Destroy Structure 6 | . . 1 . . 5 Lose Combat Pursuer 12 | . . . . . 12 Influence Decreases 635 | . 212 120 21 . 282 Entered New Map 21 | . . . 21 . . Time Decay 494 | . 202 100 . . 192 Lost Part 120 | . 10 20 . . 90 Squads Dispatched 3 | . 1 . . . 2 Investigation 1 | . 1 . . . . Extermination . | . . . . . . Reinforcement 2 | . . . . . 2 Assault . | . . . . . . Garrison . | . . . . . . Intercept . | . . . . . . Searches Triggered . | . . . . . . Construction Impeded . | . . . . . . Haulers Reinforced . | . . . . . . Active Scanning Responses . | . . . . . . Cargo Convoy Interrupts . | . . . . . . Stealth | -11 -10 -10 -10 -9 -8 --------- Run | Yrd Mat Min Exi Min Mat Distress Signals 6 | . 3 . . . 3 Communications Jammed . | . . . . . . Distress Signals . | . . . . . . Times Spotted 44 | . 15 6 . . 23 Peak Tracking Total 7 | . 4 3 . . 7 Tactical Retreats 1 | . . . . . 1 Traps | -11 -10 -10 -10 -9 -8 ------- Run | Yrd Mat Min Exi Min Mat Traps Triggered 1 | . 1 . . . . Indirectly . | . . . . . . Trap Hack Attempts . | . . . . . . Triggered . | . . . . . . Disarmed . | . . . . . . Reprogrammed . | . . . . . . Reused . | . . . . . . Traps Extracted . | . . . . . . Installed . | . . . . . . Triggered . | . . . . . . Machines | -11 -10 -10 -10 -9 -8 ---------- Run | Yrd Mat Min Exi Min Mat Machines Disabled 2 | . 1 . . . 1 Max in Single Turn 1 | . 1 . . . 1 Machines Repaired . | . . . . . . Machines Dismantled . | . . . . . . Machines Sabotaged . | . . . . . . Overloaded Fab Kills . | . . . . . . Hacking | -11 -10 -10 -10 -9 -8 --------- Run | Yrd Mat Min Exi Min Mat Machines Accessed 7 | . 1 . 5 1 . Terminals 1 | . . . . 1 . Fabricators . | . . . . . . Repair Stations . | . . . . . . Recycling Units 1 | . 1 . . . . Scanalyzers . | . . . . . . Garrison Access . | . . . . . . Total Hacks 54 | . 2 . 50 2 . Successful 52 | . 2 . 50 . . Failed 2 | . . . . 2 . Catastrophic 2 | . . . . 2 . Database Lockouts . | . . . . . . Manual 3 | . . . 1 2 . Terminals 2 | . . . . 2 . Fabricators . | . . . . . . Repair Stations . | . . . . . . Recycling Units 2 | . 2 . . . . Scanalyzers . | . . . . . . Garrison Access . | . . . . . . Terminal Hacks 50 | . . . 50 . . Record 49 | . . . 49 . . Proto ID Catalog 1 | . . . 1 . . Fabricator Hacks . | . . . . . . Repair Station Hacks . | . . . . . . Recycling Unit Hacks 2 | . 2 . . . . Process 1 | . 1 . . . . Report Inventory 1 | . 1 . . . . Scanalyzer . | . . . . . . Garrison Access Hacks . | . . . . . . Unauthorized Hacks . | . . . . . . Terminals . | . . . . . . Fabricators . | . . . . . . Repair Stations . | . . . . . . Recycling Units . | . . . . . . Scanalyzers . | . . . . . . Garrison Access . | . . . . . . Data Cores Recovered . | . . . . . . Used . | . . . . . . Hacking Detections 1 | . . . . 1 . Full Trace Events 1 | . . . . 1 . Feedback Events . | . . . . . . Feedback Blocked . | . . . . . . Robot Schematics Acquired . | . . . . . . Robots Built . | . . . . . . Authchips . | . . . . . . Time . | . . . . . . Total Robot Build Rating . | . . . . . . Part Schematics Acquired . | . . . . . . Parts Built . | . . . . . . Authchips . | . . . . . . Time . | . . . . . . Total Part Build Rating . | . . . . . . Parts Repaired . | . . . . . . Time . | . . . . . . Parts Recycled . | . . . . . . Recycled Matter 1 | . 1 . . . . Retrieved Matter . | . . . . . . Retrieved Components . | . . . . . . Parts Scanalyzed . | . . . . . . Part Schematics Acquired . | . . . . . . Parts Damaged . | . . . . . . Bothacking | -11 -10 -10 -10 -9 -8 ------------ Run | Yrd Mat Min Exi Min Mat Used RIF Installer . | . . . . . . Robots Hacked . | . . . . . . Non-combat . | . . . . . . Combat . | . . . . . . Robot Hacks Applied . | . . . . . . Relay Couplers Released . | . . . . . . Fabnet Peak Effective % . | . . . . . . Robots Rewired . | . . . . . . Allies Hacked . | . . . . . . Hacks Repelled . | . . . . . . Allies | -11 -10 -10 -10 -9 -8 -------- Run | Yrd Mat Min Exi Min Mat Total Allies . | . . . . . . Largest Group . | . . . . . . Highest-Rated Group . | . . . . . . Highest-Rated Ally . | . . . . . . Total Orders . | . . . . . . Ally Attacks . | . . . . . . Total Damage . | . . . . . . Kills . | . . . . . . Allies Corrupted . | . . . . . . Allies Melted . | . . . . . . Intel | -11 -10 -10 -10 -9 -8 ------- Run | Yrd Mat Min Exi Min Mat Active Infowar (turns) . | . . . . . . Robot Analysis Total . | . . . . . . Derelict Logs Recovered 1 | . . . . 1 . Drone Launches . | . . . . . . Drone Recoveries . | . . . . . . Exploration | -11 -10 -10 -10 -9 -8 ------------- Run | Yrd Mat Min Exi Min Mat Turns Passed 3494 | 67 862 213 1269 256 827 Spaces Moved 1670 | 50 459 47 560 158 396 Core 11 | 11 . . . . . Treads 1244 | . 83 47 560 158 396 Legs 415 | 39 376 . . . . Wheels . | . . . . . . Hover . | . . . . . . Flight . | . . . . . . Fastest Speed 50 | 50 120 320 160 160 160 Average Speed 183 | 106 156 320 225 160 160 Slowest Speed 320 | 150 320 320 320 160 160 Overloaded Moves . | . . . . . . Propulsion Burnouts . | . . . . . . Robots Hopped . | . . . . . . Potential Cave-ins . | . . . . . . Cave-ins Triggered . | . . . . . . Exploration Rate (%) 37 | 4 62 16 78 32 31 Regions Visited 5 Branch Regions 3 Pre-discovered Areas 1 | . . . 1 . . Known Exits Taken 4 | . 1 1 1 1 . Unknown Exits Taken 1 | 1 . . . . . Scrap Searched 1 | . . . . 1 . Spaces Dug . | . . . . . . Terrain Destroyed 6 | . . 1 . . 5 Melee . | . . . . . . Projectile 1 | . . 1 . . . AOE 5 | . . . . . 5 Terrain Rammed . | . . . . . . Walls Destroyed . | . . . . . . Machines Disabled . | . . . . . . Actions | -11 -10 -10 -10 -9 -8 --------- Run | Yrd Mat Min Exi Min Mat Total 1931 | 60 537 78 566 162 528 Wait 85 | . 18 . . . 67 Move 1665 | 49 458 46 559 157 396 Hop . | . . . . . . Pick Up 32 | 4 8 . 6 3 11 Fast Attach 10 | 6 2 . . . 2 Attach 9 | . 1 2 . . 6 Detach 3 | . 1 . . . 2 Swap 16 | 1 8 . 1 . 6 Drop 14 | . 5 . . 2 7 Fire 96 | . 35 30 . . 31 Melee . | . . . . . . Ram . | . . . . . . Kick 1 | . 1 . . . . Crush . | . . . . . . Escape Stasis . | . . . . . . Rewire . | . . . . . . Trap . | . . . . . . Miscellaneous . | . . . . . . Route ------- -11/Scrapyard -10/Materials (discovered 3 exits: *Mat x2 / *Min) -10/Mines -10/Exiles (discovered 2 exits: *Min x2) -9/Mines -8/Materials History --------- Turn | Location | Event 8 | -11/Scrapyard | Discovered new exit (range 15) 68 | -11/Scrapyard | Entered Materials 278 | -10/Materials | Discovered new exit (range 15) 309 | -10/Materials | Build established: Mutant 396 | -10/Materials | Discovered new exit (range 13) 443 | -10/Materials | Identified exit to Materials 651 | -10/Materials | Discovered exit to Materials (range 5) 926 | -10/Materials | Identified exit to Mines 930 | -10/Materials | Entered Mines 1031 | -10/Mines | Core integrity fell below 50% 1126 | -10/Mines | Deemed a non-threat by the Exiles lab entrance 1130 | -10/Mines | Discovered new exit (range 5) 1139 | -10/Mines | Identified exit to Exiles 1143 | -10/Mines | Entered Exiles 1185 | -10/Exiles | Discovered new exit (range 15) 1223 | -10/Exiles | Met 8R-AWN 1275 | -10/Exiles | Met EX-HEX 1367 | -10/Exiles | Met EX-BIN 1412 | -10/Exiles | Aligned with FarCom system 1415 | -10/Exiles | Given EX-Vault access code 1492 | -10/Exiles | Opened EX-Vault 1518 | -10/Exiles | Found 0b10 Alert Chip 1644 | -10/Exiles | Warned to stay clear of 0b10 Research branches 1743 | -10/Exiles | Met EX-DEC 1762 | -10/Exiles | Learned location of Zion (-7) 1905 | -10/Exiles | Discovered new exit (range 14) 2131 | -10/Exiles | Visited The Gauntlet 2410 | -10/Exiles | Identified exit to Mines 2412 | -10/Exiles | Left Exiles lab with 0b10 Alert Chip 2412 | -10/Exiles | Entered Mines 2497 | -9/Mines | YI-UF0 nonchalantly dropped a Grenade Launcher on the ground 2556 | -9/Mines | Discovered new exit (range 5) 2557 | -9/Mines | Learned Materials emergency access door positions 2562 | -9/Mines | Identified exit to Materials 2668 | -9/Mines | Entered Materials 2668 | -8/Materials | Evolved 4 slots: Propulsion x1, Utility x2, Weapon x1 2961 | -8/Materials | Build established: Skirmisher 3474 | -8/Materials | Core integrity fell below 50% 3486 | -8/Materials | Core integrity fell below 20% 3495 | -8/Materials | Destroyed by S-10 Pest with Light Assault Rifle Last Messages --------------- 03440_ Overheating: Energy bleed (-21). 03440_ Lgt. Treads severed. 03442_ Particle Gun broken. 03442_ Overheating: Short circuit. 03443_ Overheating: Energy bleed (-21). 03443_ Lgt. Treads destroyed. 03444_ Power failure, Ion Engine shutdown. 03446_ Broken Particle Gun destroyed. 03453_ Ion Engine destroyed. 03457_ Imp. Medium Laser destroyed. 03458_ Hrd. Light Armor Plating destroyed. 03461_ S-10 Pest destroyed. 03463_ Hvy. Particle Gun destroyed. 03474_ W-25 Informer sends out distress signal. 03475_ Broken 0b10 Alert Chip destroyed. 03478_ Broken Signal Interpreter severed. 03489_ R-06 Scavenger collects Aluminum Leg. 03491_ Slug penetrates Wall. 03491_ W-25 Informer suffers critical hit (Destroy). 03494_ Slug penetrates Wall. Map ----- +----------------------------------------------------+ | # " #???# #?????# ## ## + | | # "" #???# """ #?????# ## ## """" # | | # "" ##### """ ####### ## ## """" # | | # """ + # """ # # ## ## """" # | | # "" # # # ###+##### ## # | | # """ + + """ # + # | | # """ # # """ # ####+#### | | # """ # # """ # """ #??# #??# | | #! " # #/ #### """"" #??# #??# | | # # # = #??# """"" #??# #??# | | ######### ########## """"" #### #### | | ?# ?# #?# ! # "" # | | ?# """?# #?# # # | | ?# """ # #?# " " # =# | | ?# """ # #?# "R" + + | | ?# + #?# """ #!! # | | ?# ! # #?# # !! # | | ?######## ##########!! # | | # ! # k ^ ^ ## | | #/ # w ^ #? | | # + u "T" ! #? | | # """ # = ####+##### ####### +? | | # """ # =!#??? ## ####### #? | | # """?### #?? !!## #?????# #? | | ?#####???# sl##%s =!%[# #?????# #? | | ?????????# """ =@/*[ =![## #?????###+###? | | ?????????# """ =## =%= ## ???????? ??? | | ?????????# """ #??h #? #???????? ??? | | ?????????# #?????###? ????????? ??? | | ?????????#=[ #????????? ????????? ??? | | ?????????# ########??????????????????? ??? | | ?????????#*#?????????????????????????? ??? | | ?????????#%#?????????????????????????? ???? | | ?????????#=#??????????????????????????????? | | ?????????# #??????????????????????????????? | | ?????????#%#??????????????????????????????? | | ?#########+#??????????????????????????????? | | ?# ! =#????+?????????????????+?????+?? | | ?# #??????????????????????????????? | | ?# #??????????????????????????????? | | ?# ] #??????????????????????????????? | | ?# #??????????????????????????????? | | ?# #??????????????????????????????? | | ?# #????+?????????????????????????? | | ?# #??????????????????????????????? | | ?#######+###??????????????????????????????? | | ??????????????????????????????????????????? | | ??????????????????????????????????????????? | | ??????????????????????????????????????????? | | ??????????????????????????????????????????? | +----------------------------------------------------+ Best States ------------- Heat Dissipation 45 Energy Generation 10 Energy Capacity 250 Matter Stores 300 Matter Capacity 300 Sight Range 16 Terrain Scan Density 10 Armor Coverage 150 Evasion (%) 55 Recoil Reduction 3 Item Schematics ----------------- None Robot Schematics ------------------ None Fabricated ------------ Nothing Repaired ---------- Nothing Alien Tech Used ----------------- None Achievements -------------- None Challenges ------------ None Game ------ Seed TiamatSensorBeamcaster Manual? 0 Play Time 00:29:38 Cumulative 20.3 hours Start 2025.10.18 @ 21:09:37 End 2025.10.18 @ 21:41:20 Sessions 1 Manual Loads 0 Difficulty Rogue Special Mode None Game No. 16 Rogue 16 Adventurer 0 Explorer 0 Win Type - Total 0 Types 0/0/0/0/0/0/0/0/0/0 Lore% 9 Gallery% 21 Achievement% 19 Wizard Run 0 Options --------- Layout 0 ASCII 0 Keyboard 0 Movement Mouse Keybinds 1 Fullscreen 2 Font 24/Smallcaps Map View 76x50 Zoom Use 0% Tactical HUD 1 Map Filters NONE Filters NONE Steam 1 RUN: 64da44c4-3068-4876-8e7a-8c65fdd71326